bitfinex/quotes_SOLUSD_20250612
["timestamp","ask_amount","ask_price","bid_price","bid_amount"]
[1749730064523,22.16873573,157.88,157.77,1.5732]
[1749730064834,22.16873573,157.88,157.82,14.15755318]
[1749730064990,36.32628891,157.88,157.77,1.5732]
[1749730065197,36.32628891,157.88,157.83,14.15755318]
[1749730065806,14.15755318,157.87,157.83,14.15755318]
[1749730066017,22.16873573,157.88,157.84,14.15755318]
[1749730066018,36.32628891,157.88,157.84,14.15755318]
[1749730066808,36.32628891,157.88,157.83,14.15755318]
[1749730067009,22.16873573,157.88,157.82,14.15755318]
[1749730067219,22.16873573,157.88,157.83,14.15755318]
[1749730067530,36.32628891,157.88,157.83,14.15755318]
[1749730068040,6.33392449,157.88,157.85,14.15755318]
[1749730069131,6.33392449,157.88,157.79,24.85984886]
[1749730069132,6.33392449,157.88,157.8,18.933972]
[1749730069436,14.15755318,157.87,157.83,14.15755318]
[1749730069598,14.15755318,157.86,157.81,14.15755318]
[1749730070103,22.16873573,157.88,157.77,20.22284886]
[1749730070104,22.16873573,157.88,157.8,14.15755318]
[1749730070298,40.15755318,157.85,157.77,20.22284886]
[1749730070501,40.15755318,157.85,157.8,14.15755318]
[1749730070712,26.0,157.85,157.81,14.15755318]
[1749730070922,26.0,157.85,157.77,20.22284886]
[1749730071114,6.33552965,157.84,157.81,14.15755318]
[1749730071610,6.33552965,157.84,157.82,14.15755318]
[1749730071931,6.33552965,157.84,157.77,20.22284886]
[1749730072122,6.33552965,157.84,157.82,14.15755318]
[1749730072304,6.33552965,157.84,157.81,14.15755318]
[1749730072504,6.33552965,157.84,157.82,14.15755318]
[1749730072808,6.33552965,157.84,157.81,14.15755318]
[1749730073809,6.33552965,157.84,157.77,1.5732]
[1749730074225,36.33190695,157.84,157.77,1.5732]
[1749730074534,22.17435377,157.84,157.8,14.15755318]
[1749730074906,36.33190695,157.84,157.79,14.15755318]
[1749730075109,22.17435377,157.84,157.77,1.5732]
[1749730075426,22.17435377,157.84,157.8,14.15755318]
[1749730075810,6.33552965,157.84,157.8,14.15755318]
[1749730076129,6.33552965,157.84,157.77,1.5732]
[1749730076434,6.33552965,157.84,157.8,14.15755318]
[1749730077411,6.33552965,157.84,157.77,1.5732]
[1749730077602,6.33552965,157.84,157.8,14.15755318]
[1749730077929,6.33552965,157.84,157.77,1.5732]
[1749730077930,20.49308283,157.84,157.79,14.15755318]
[1749730078114,36.33190695,157.84,157.77,1.5732]
[1749730078314,36.33190695,157.84,157.79,14.15755318]
[1749730079313,22.17435377,157.84,157.79,14.15755318]
[1749730079512,36.33190695,157.84,157.79,14.15755318]
[1749730080025,14.15755318,157.82,157.77,14.15755318]
[1749730080427,14.15755318,157.8,157.73,7.3728]
[1749730080635,14.15755318,157.79,157.74,14.15755318]
[1749730080940,14.15755318,157.8,157.74,14.15755318]
[1749730081559,14.15755318,157.8,157.73,5.8]
[1749730081807,7.5699,157.81,157.73,5.8]
[1749730082011,20.49468879,157.8,157.75,14.15755318]
[1749730082437,36.33752782,157.8,157.75,14.15755318]
[1749730083143,36.33752782,157.8,157.73,5.8]
[1749730083310,22.17997464,157.8,157.74,14.15755318]
[1749730083510,14.15755318,157.76,157.71,14.15755318]
[1749730083714,14.15755318,157.74,157.66,18.64964886]
[1749730083917,6.33994801,157.73,157.69,14.15755318]
[1749730084430,6.33994801,157.73,157.66,18.64964886]
[1749730084643,6.33994801,157.73,157.7,14.15755318]
[1749730085336,6.33914421,157.75,157.72,14.15755318]
[1749730085535,6.33914421,157.75,157.73,14.15755318]
[1749730085838,6.33914421,157.75,157.72,14.15755318]
[1749730086007,6.33914421,157.75,157.68,14.15755318]
[1749730086207,6.33914421,157.75,157.72,14.15755318]
[1749730087430,6.33914421,157.75,157.73,14.15755318]
[1749730088038,6.33914421,157.75,157.74,14.15755318]
[1749730088235,32.33887432,157.76,157.74,14.15755318]
[1749730088434,32.33887432,157.76,157.68,14.15755318]
[1749730088620,32.33887432,157.76,157.74,14.15755318]
[1749730088814,32.33887432,157.76,157.68,14.15755318]
[1749730089019,32.33887432,157.76,157.73,14.15755318]
[1749730089235,32.33887432,157.76,157.68,14.15755318]
[1749730089442,26.0,157.72,157.7,14.15755318]
[1749730089652,26.0,157.72,157.69,14.15755318]
[1749730090451,6.34075201,157.71,157.64,0.28432314]
[1749730090658,6.34075201,157.71,157.7,14.15755318]
[1749730091517,6.34075201,157.71,157.64,0.28432314]
[1749730091740,6.34075201,157.71,157.69,14.15755318]
[1749730092258,6.34075201,157.71,157.68,14.15755318]
[1749730092551,6.34075201,157.71,157.67,14.15755318]
[1749730092757,22.19263204,157.71,157.67,14.15755318]
[1749730093716,36.35018522,157.71,157.66,14.15755318]
[1749730093912,22.19263204,157.71,157.67,14.15755318]
[1749730094337,22.19263204,157.71,157.63,26.0]
[1749730094756,22.19263204,157.71,157.67,14.15755318]
[1749730095419,6.34075201,157.71,157.69,14.15755318]
[1749730096925,6.34075201,157.71,157.68,14.15755318]
[1749730097648,6.34075201,157.71,157.69,14.15755318]
[1749730098143,6.34075201,157.71,157.64,18.64964886]
[1749730098347,6.34075201,157.71,157.69,14.15755318]
[1749730098758,6.34075201,157.71,157.68,14.15755318]
[1749730099067,6.34075201,157.71,157.67,14.15755318]
[1749730099239,6.33994801,157.73,157.7,14.15755318]
[1749730099429,6.33994801,157.73,157.69,14.15755318]
[1749730099757,36.34737122,157.73,157.68,14.15755318]
[1749730100127,14.15755318,157.72,157.63,26.0]
[1749730100341,14.15755318,157.72,157.67,14.15755318]
[1749730100539,6.34075201,157.71,157.67,14.15755318]
[1749730100862,6.34075201,157.71,157.69,14.15755318]
[1749730101071,6.33994801,157.73,157.7,14.15755318]
[1749730101873,6.33994801,157.73,157.71,14.15755318]
[1749730102082,6.33994801,157.73,157.72,14.15755318]
[1749730102252,181.43969387,157.74,157.72,14.15755318]
[1749730102440,181.43969387,157.74,157.73,14.15755318]
[1749730103670,155.43969387,157.74,157.73,14.15755318]
[1749730104451,6.33969387,157.74,157.73,14.15755318]
[1749730104776,6.33874239,157.76,157.73,14.15755318]
[1749730104979,6.33874239,157.76,157.72,14.15755318]
[1749730105274,22.18559837,157.76,157.72,14.15755318]
[1749730106157,6.33874239,157.76,157.74,14.15755318]
[1749730106775,6.33874239,157.76,157.75,14.15755318]
[1749730107261,6.33874239,157.76,157.68,14.15755318]
[1749730107464,6.33874239,157.76,157.75,14.15755318]
[1749730107845,6.33874239,157.76,157.74,14.15755318]
[1749730108468,6.33874239,157.76,157.75,14.15755318]
[1749730109878,6.33874239,157.76,157.68,14.15755318]
[1749730110049,6.33874239,157.76,157.75,14.15755318]
[1749730111631,6.33874239,157.76,157.74,14.15755318]
[1749730113245,6.33874239,157.76,157.75,14.15755318]
[1749730114072,6.33874239,157.76,157.73,14.15755318]
[1749730114380,6.33874239,157.76,157.68,14.15755318]
[1749730114573,22.18559837,157.76,157.68,14.15755318]
[1749730114774,22.18559837,157.76,157.72,14.15755318]
[1749730116073,22.18559837,157.76,157.68,14.15755318]
[1749730116278,22.18559837,157.76,157.73,14.15755318]
[1749730117589,5.46144343,157.76,157.73,14.15755318]
[1749730117954,5.46144343,157.76,157.75,14.15755318]
[1749730119173,6.3379389,157.78,157.75,14.15755318]
[1749730119381,6.3379389,157.78,157.76,14.15755318]
[1749730120383,22.18278615,157.78,157.74,14.15755318]
[1749730120565,22.18278615,157.78,157.75,14.15755318]
[1749730121552,6.3379389,157.78,157.76,14.15755318]
[1749730121757,6.3379389,157.78,157.77,14.15755318]
[1749730122990,6.33713561,157.8,157.77,14.15755318]
[1749730123192,6.33713561,157.8,157.79,14.15755318]
[1749730124093,6.33713561,157.8,157.77,14.15755318]
[1749730124674,22.17997464,157.8,157.76,14.15755318]
[1749730124874,14.15755318,157.78,157.69,26.0]
[1749730125073,14.15755318,157.78,157.73,14.15755318]
[1749730125074,6.33834062,157.77,157.73,14.15755318]
[1749730125290,20.4958938,157.77,157.68,34.45080204]
[1749730125476,22.18419217,157.77,157.73,14.15755318]
[1749730127301,22.18419217,157.77,157.74,14.15755318]
[1749730127480,6.33834062,157.77,157.76,14.15755318]
[1749730127875,6.33834062,157.77,157.75,14.15755318]
[1749730128301,6.33834062,157.77,157.69,18.933972]
[1749730128602,6.33834062,157.77,157.74,14.15755318]
[1749730129101,22.18419217,157.77,157.73,14.15755318]
[1749730133076,22.18419217,157.77,157.68,34.45080204]
[1749730133381,22.18419217,157.77,157.73,14.15755318]
[1749730133908,22.18419217,157.77,157.68,34.45080204]
[1749730133909,14.15755318,157.76,157.72,14.15755318]
[1749730134199,14.15755318,157.76,157.71,14.15755318]
[1749730134494,14.15755318,157.76,157.72,14.15755318]
[1749730134699,14.15755318,157.76,157.71,14.15755318]
[1749730135498,22.1884113,157.74,157.7,14.15755318]
[1749730135696,36.34596448,157.74,157.69,14.15755318]
[1749730135895,62.34596448,157.74,157.69,14.15755318]
[1749730136637,48.1884113,157.74,157.65,6.2]
[1749730136911,14.15755318,157.73,157.68,14.15755318]
[1749730137213,62.34596448,157.74,157.69,14.15755318]
[1749730137688,62.34596448,157.74,157.68,14.15755318]
[1749730137689,14.15755318,157.73,157.68,14.15755318]
[1749730137913,18.87924562,157.73,157.68,14.15755318]
[1749730138698,38.36569244,157.73,157.67,14.15755318]
[1749730138999,38.36569244,157.73,157.68,14.15755318]
[1749730139000,47.80155318,157.73,157.68,14.15755318]
[1749730139571,22.19122494,157.72,157.68,14.15755318]
[1749730140101,22.19122494,157.72,157.65,6.2]
[1749730140301,36.34877812,157.72,157.67,14.15755318]
[1749730140504,22.19122494,157.72,157.68,14.15755318]
[1749730141003,22.19122494,157.72,157.67,14.15755318]
[1749730141297,22.19122494,157.72,157.68,14.15755318]
[1749730141720,36.34877812,157.72,157.67,14.15755318]
[1749730141934,36.34877812,157.72,157.62,0.14216157]
[1749730142114,36.34877812,157.72,157.68,14.15755318]
[1749730143136,14.15755318,157.7,157.6,15.80155318]
[1749730143520,26.0,157.68,157.6,1.644]
[1749730143732,26.0,157.68,157.66,14.15755318]
[1749730145307,6.34236062,157.67,157.66,14.15755318]
[1749730146528,6.34236062,157.67,157.6,15.80155318]
[1749730146729,6.34236062,157.67,157.66,14.15755318]
[1749730147532,6.34236062,157.67,157.6,15.80155318]
[1749730147829,6.34236062,157.67,157.66,14.15755318]
[1749730148209,6.34236062,157.67,157.65,14.15755318]
[1749730151011,6.34236062,157.67,157.66,14.15755318]
[1749730151431,6.34236062,157.67,157.65,14.15755318]
[1749730152526,22.19826218,157.67,157.6,1.644]
[1749730152718,36.35581536,157.67,157.62,14.15755318]
[1749730153231,14.15755318,157.66,157.57,7.7331]
[1749730153430,14.15755318,157.65,157.6,14.15755318]
[1749730153612,14.15755318,157.63,157.58,14.15755318]
[1749730153812,14.15755318,157.63,157.54,0.025]
[1749730153813,14.15755318,157.63,157.59,14.15755318]
[1749730154008,33.09152518,157.64,157.6,14.15755318]
[1749730154321,33.09152518,157.64,157.54,0.025]
[1749730154636,33.09152518,157.64,157.6,14.15755318]
[1749730155314,6.34397005,157.63,157.54,0.025]
[1749730155724,6.34397005,157.63,157.6,14.15755318]
[1749730156118,6.34397005,157.63,157.54,0.025]
[1749730156309,6.34397005,157.63,157.6,14.15755318]
[1749730156730,6.34397005,157.63,157.54,0.30932314]
[1749730156921,6.34397005,157.63,157.54,0.025]
[1749730157115,36.36144837,157.63,157.54,0.025]
[1749730157355,22.20389519,157.63,157.58,14.15755318]
[1749730157650,36.36144837,157.63,157.58,14.15755318]
[1749730157957,36.36144837,157.63,157.54,0.025]
[1749730158127,36.36144837,157.63,157.58,14.15755318]
[1749730158950,14.15755318,157.62,157.57,14.15755318]
[1749730159249,14.15755318,157.62,157.54,0.025]
[1749730159434,14.15755318,157.62,157.57,14.15755318]
[1749730159934,42.89924837,157.63,157.58,14.15755318]
[1749730160249,28.74169519,157.63,157.59,14.15755318]
[1749730160550,42.89924837,157.63,157.58,14.15755318]
[1749730161138,42.89924837,157.63,157.59,14.15755318]
[1749730161641,14.15755318,157.62,157.54,0.025]
[1749730162041,14.15755318,157.62,157.58,14.15755318]
[1749730162248,14.15755318,157.62,157.54,0.025]
[1749730162439,14.15755318,157.62,157.58,14.15755318]
[1749730162638,14.15755318,157.62,157.54,0.025]
[1749730162842,14.15755318,157.62,157.58,14.15755318]
[1749730163234,22.20671276,157.61,157.57,14.15755318]
[1749730163449,22.20671276,157.61,157.54,0.025]
[1749730163644,22.20671276,157.61,157.58,14.15755318]
[1749730164852,15.86193769,157.61,157.58,14.15755318]
[1749730165055,15.86193769,157.61,157.57,14.15755318]
[1749730165553,15.86193769,157.61,157.58,14.15755318]
[1749730167054,6.34477507,157.61,157.6,14.15755318]
[1749730167749,36.36426594,157.61,157.54,0.025]
[1749730167982,22.20671276,157.61,157.57,14.15755318]
[1749730170065,48.20671276,157.61,157.54,0.025]
[1749730170248,14.15755318,157.59,157.54,0.025]
[1749730170448,14.15755318,157.6,157.54,0.025]
[1749730170649,14.15755318,157.55,157.54,0.025]
[1749730170843,14.15755318,157.55,157.5,156.919]
[1749730170844,32.1907,157.51,157.5,156.919]
[1749730171049,26.0,157.5,157.37,3.23804269]
[1749730171266,54.76,157.5,157.37,3.23804269]
[1749730171470,26.0,157.46,157.37,3.23804269]
[1749730171814,26.0,157.46,157.36,14.15755318]
[1749730171968,26.0,157.42,157.36,14.15755318]
[1749730172298,6.35283654,157.41,157.33,1.5731]
[1749730172998,14.157553,157.48,157.32,0.8476206]
[1749730173212,18.933972,157.44,157.32,0.8476206]
[1749730173379,18.933972,157.44,157.37,14.15755318]
[1749730173565,26.0,157.41,157.32,0.8476206]
[1749730173892,18.933972,157.42,157.33,26.0]
[1749730174073,6.35283654,157.41,157.33,26.0]
[1749730175085,6.35283654,157.41,157.36,14.15755318]
[1749730175391,6.35283654,157.41,157.38,14.15755318]
[1749730175589,6.35283654,157.41,157.34,18.64964886]
[1749730175888,6.35166433,157.44,157.36,14.15755318]
[1749730176096,0.28432314,157.46,157.36,14.15755318]
[1749730176097,6.35117958,157.46,157.43,14.15755318]
[1749730176267,6.35117958,157.46,157.37,18.64964886]
[1749730176462,14.157553,157.48,157.37,18.64964886]
[1749730176463,20.50789106,157.48,157.39,0.14216157]
[1749730176668,26.0,157.45,157.44,14.15755318]
[1749730177080,20.50789106,157.48,157.44,14.15755318]
[1749730177279,26.0,157.47,157.44,14.15755318]
[1749730177480,26.0,157.47,157.39,0.28432314]
[1749730177683,26.0,157.47,157.45,14.15755318]
[1749730177684,26.0,157.46,157.45,14.15755318]
[1749730178003,26.0,157.46,157.38,18.64964886]
[1749730178174,46.50877579,157.45,157.37,18.64964886]
[1749730178676,32.35122261,157.45,157.41,14.15755318]
[1749730178998,32.35122261,157.45,157.37,18.64964886]
[1749730179172,32.35122261,157.45,157.41,14.15755318]
[1749730180194,32.35122261,157.45,157.43,14.15755318]
[1749730181094,32.35122261,157.45,157.37,18.64964886]
[1749730181095,32.35122261,157.45,157.42,14.15755318]
[1749730181524,46.50877579,157.45,157.36,14.15755318]
[1749730181732,32.35122261,157.45,157.37,18.64964886]
[1749730182089,32.35122261,157.45,157.42,14.15755318]
[1749730182920,30.03258475,157.48,157.37,18.933972]
[1749730183098,6.35041595,157.47,157.45,14.15755318]
[1749730183300,32.35041595,157.47,157.38,0.28432314]
[1749730183508,32.35041595,157.47,157.44,14.15755318]
[1749730183694,32.35041595,157.47,157.37,0.28432314]
[1749730183895,32.35041595,157.47,157.44,14.15755318]
[1749730184793,32.35041595,157.47,157.37,0.28432314]
[1749730184993,32.35041595,157.47,157.44,14.15755318]
[1749730185195,32.35041595,157.47,157.37,0.28432314]
[1749730185418,26.0,157.44,157.42,14.15755318]
[1749730186605,26.0,157.44,157.41,14.15755318]
[1749730186817,6.35202947,157.43,157.36,32.80720204]
[1749730187021,6.35202947,157.43,157.4,14.15755318]
[1749730187229,6.35202947,157.43,157.39,14.15755318]
[1749730188134,20.50958265,157.43,157.38,14.15755318]
[1749730188339,20.50958265,157.43,157.35,18.64964886]
[1749730188542,6.35202947,157.43,157.38,14.15755318]
[1749730188849,6.35202947,157.43,157.34,18.64964886]
[1749730189021,36.38965633,157.43,157.34,18.64964886]
[1749730189220,26.0,157.4,157.32,0.8476206]
[1749730189427,26.0,157.4,157.35,14.15755318]
[1749730189719,26.0,157.4,157.36,14.15755318]
[1749730189919,26.0,157.38,157.36,14.15755318]
[1749730190542,26.0,157.38,157.33,18.64964886]
[1749730190715,14.15755318,157.39,157.32,0.8476206]
[1749730190914,20.51119699,157.39,157.35,14.15755318]
[1749730191142,20.51119699,157.39,157.32,0.8476206]
[1749730191346,22.23775334,157.39,157.36,14.15755318]
[1749730191728,22.23775334,157.39,157.32,0.8476206]
[1749730191729,22.23775334,157.39,157.35,14.15755318]
[1749730192115,22.23775334,157.39,157.34,14.15755318]
[1749730192116,26.0,157.36,157.34,14.15755318]
[1749730192314,26.0,157.36,157.32,0.8476206]
[1749730192646,26.0,157.36,157.33,14.15755318]
[1749730192823,26.0,157.36,157.35,14.15755318]
[1749730193020,32.3548551,157.36,157.35,14.15755318]
[1749730193225,32.3548551,157.36,157.34,14.15755318]
[1749730194139,32.3548551,157.36,157.32,0.8476206]
[1749730194140,48.24199287,157.36,157.32,0.8476206]
[1749730194645,48.24199287,157.36,157.32,15.00517378]
[1749730195140,48.24199287,157.36,157.32,0.8476206]
[1749730195319,48.24199287,157.36,157.32,15.00517378]
[1749730195823,48.24199287,157.36,157.32,0.8476206]
[1749730196026,48.24199287,157.36,157.32,15.00517378]
[1749730196213,48.24199287,157.36,157.32,0.8476206]
[1749730196419,48.24199287,157.36,157.33,14.15755318]
[1749730196659,48.24199287,157.36,157.32,15.00517378]
[1749730196864,62.39954605,157.36,157.32,0.8476206]
[1749730197032,14.15755318,157.35,157.32,0.8476206]
[1749730197236,48.24199287,157.36,157.32,0.8476206]
[1749730197438,62.39954605,157.36,157.32,0.8476206]
[1749730197640,26.0,157.33,157.32,0.8476206]
[1749730197829,32.35606686,157.33,157.32,0.8476206]
[1749730198242,6.35606686,157.33,157.32,15.00517378]
[1749730198741,6.35525897,157.35,157.32,15.00517378]
[1749730198941,6.35525897,157.35,157.34,14.15755318]
[1749730199622,6.35525897,157.35,157.32,2.3888206]
[1749730199821,6.35525897,157.35,157.34,14.15755318]
[1749730200017,6.35525897,157.35,157.32,2.3888206]
[1749730200217,15.88487076,157.39,157.34,14.15755318]
[1749730200218,6.35404752,157.38,157.34,14.15755318]
[1749730200419,6.35404752,157.38,157.32,2.3888206]
[1749730200623,6.35404752,157.38,157.37,14.15755318]
[1749730201231,6.35404752,157.38,157.32,2.3888206]
[1749730201428,6.35404752,157.38,157.37,14.15755318]
[1749730201905,6.35404752,157.38,157.32,2.3888206]
[1749730202087,26.0,157.34,157.32,2.3888206]
[1749730202398,26.0,157.34,157.33,14.15755318]
[1749730202575,26.0,157.34,157.33,14.44187632]
[1749730202772,26.0,157.36,157.33,14.44187632]
[1749730202980,32.35376615,157.39,157.35,18.64964886]
[1749730203172,32.35376615,157.39,157.37,14.15755318]
[1749730203604,26.0,157.37,157.32,2.3888206]
[1749730203789,26.0,157.38,157.32,2.3888206]
[1749730204098,6.35445129,157.37,157.34,14.15755318]
[1749730204396,6.35445129,157.37,157.35,14.15755318]
[1749730204572,6.35445129,157.37,157.36,14.15755318]
[1749730204772,6.35202947,157.43,157.36,14.15755318]
[1749730204976,14.15755318,157.41,157.36,14.15755318]
[1749730205282,22.23210315,157.43,157.33,18.64964886]
[1749730205283,26.0,157.39,157.33,18.64964886]
[1749730205480,26.0,157.39,157.37,14.15755318]
[1749730205669,22.23210315,157.43,157.33,18.64964886]
[1749730205670,26.0,157.4,157.33,18.64964886]
[1749730205869,26.0,157.4,157.39,14.15755318]
[1749730206196,6.35122261,157.45,157.39,14.15755318]
[1749730206393,26.0,157.42,157.41,14.15755318]
[1749730206565,22.22927913,157.45,157.41,14.15755318]
[1749730206770,48.22927913,157.45,157.41,14.15755318]
[1749730206966,48.22927913,157.45,157.37,18.64964886]
[1749730207281,22.22927913,157.45,157.36,14.15755318]
[1749730207474,26.0,157.43,157.41,14.15755318]
[1749730207680,26.0,157.43,157.42,14.15755318]
[1749730208173,6.35202947,157.43,157.37,18.64964886]
[1749730208380,6.35202947,157.43,157.42,14.15755318]
[1749730208580,6.35202947,157.43,157.37,18.64964886]
[1749730208796,32.35202947,157.43,157.42,14.15755318]
[1749730208992,32.35202947,157.43,157.34,18.933972]
[1749730209295,26.0,157.43,157.34,18.933972]
[1749730209501,6.35167132,157.44,157.42,14.15755318]
[1749730209706,32.35167132,157.44,157.43,14.15755318]
[1749730209917,32.35167132,157.44,157.37,18.64964886]
[1749730210090,32.35167132,157.44,157.42,14.15755318]
[1749730210298,48.23073636,157.44,157.41,14.15755318]
[1749730210483,4.69154565,157.43,157.41,14.15755318]
[1749730210679,48.23073636,157.44,157.37,18.64964886]
[1749730210902,48.23073636,157.44,157.4,14.15755318]
[1749730211107,48.23073636,157.44,157.41,14.15755318]
[1749730211606,48.23073636,157.44,157.34,18.933972]
[1749730211808,48.23073636,157.44,157.41,14.15755318]
[1749730212511,14.15755318,157.43,157.33,26.0]
[1749730212702,40.15755318,157.41,157.36,14.15755318]
[1749730212906,26.0,157.41,157.4,14.15755318]
[1749730213128,6.35167132,157.44,157.4,14.15755318]
[1749730213406,6.35167132,157.44,157.37,18.64964886]
[1749730213607,6.35167132,157.44,157.43,14.15755318]
[1749730213808,4.68311003,157.44,157.43,14.15755318]
[1749730214020,6.35133521,157.45,157.4,18.64964886]
[1749730214181,6.35133521,157.45,157.44,14.15755318]
[1749730214381,26.0,157.45,157.44,14.15755318]
[1749730214606,30.69143191,157.45,157.4,18.64964886]
[1749730214784,26.0,157.45,157.44,14.15755318]
[1749730214988,30.6914295,157.45,157.4,18.64964886]
[1749730215188,26.0,157.45,157.44,14.15755318]
[1749730215486,4.69161144,157.45,157.4,18.64964886]
[1749730215805,6.35081925,157.46,157.44,14.15755318]
[1749730216010,4.69932635,157.45,157.4,18.64964886]
[1749730216207,4.69932635,157.44,157.4,18.64964886]
[1749730216414,6.35081925,157.46,157.4,18.64964886]
[1749730216587,4.69890713,157.45,157.39,1.571]
[1749730216788,4.69890713,157.44,157.39,1.571]
[1749730217017,4.69939537,157.43,157.39,1.571]
[1749730217210,40.15755318,157.45,157.41,14.15755318]
[1749730217411,4.69945072,157.44,157.41,14.15755318]
[1749730217610,4.69945072,157.43,157.39,1.571]
[1749730217834,14.15755318,157.41,157.35,1.6598]
[1749730218144,30.69865432,157.42,157.37,14.15755318]
[1749730218145,4.69865432,157.4,157.37,14.15755318]
[1749730218321,4.69865432,157.39,157.37,14.15755318]
[1749730218523,6.35283654,157.41,157.35,1.6598]
[1749730218825,4.69660601,157.4,157.32,0.8476206]
[1749730219023,4.69660601,157.39,157.38,14.15755318]
[1749730219210,4.69660601,157.39,157.37,21.31183246]
[1749730219409,4.69660601,157.38,157.37,21.31183246]
[1749730219640,26.00843847,157.38,157.32,0.8476206]
[1749730219822,4.69660601,157.37,157.34,21.31183246]
[1749730220028,4.69660601,157.36,157.35,21.31183246]
[1749730220512,11.05146111,157.36,157.35,21.31183246]
[1749730220840,6.3548551,157.36,157.35,21.31183246]
[1749730221049,11.04903556,157.36,157.35,21.31183246]
[1749730221210,26.93617333,157.36,157.34,21.31183246]
[1749730221407,22.24199287,157.36,157.34,21.31183246]
[1749730221613,22.24199287,157.36,157.32,0.8476206]
[1749730221815,22.24199287,157.36,157.34,21.31183246]
[1749730222115,22.24199287,157.36,157.32,0.8476206]
[1749730222316,15.88713777,157.36,157.34,21.31183246]
[1749730223822,15.88713777,157.36,157.32,0.8476206]
[1749730224026,15.88713777,157.36,157.34,21.31183246]
[1749730224557,15.88713777,157.36,157.35,21.31183246]
[1749730226531,15.88713777,157.36,157.32,0.8476206]
[1749730226732,15.88713777,157.36,157.34,21.31183246]
[1749730227119,15.88713777,157.36,157.33,21.31183246]
[1749730227451,22.24199287,157.36,157.33,21.31183246]
[1749730227623,22.24199287,157.36,157.32,22.15945306]
[1749730228020,21.31183246,157.34,157.32,0.8476206]
[1749730229555,48.24199287,157.36,157.32,0.8476206]
[1749730229856,47.31183246,157.33,157.32,0.8476206]
[1749730230445,26.0,157.33,157.32,0.8476206]
[1749730230630,47.31183246,157.33,157.32,0.8476206]
[1749730231327,26.0,157.33,157.32,0.8476206]
[1749730231524,32.35606686,157.33,157.32,0.8476206]
[1749730233553,53.66789932,157.33,157.32,0.8476206]
[1749730233756,32.35606686,157.33,157.32,0.8476206]
[1749730234854,6.35606686,157.33,157.32,0.8476206]
[1749730235558,6.35566289,157.34,157.32,0.8476206]
[1749730235753,6.35566289,157.34,157.32,22.15945306]
[1749730235954,6.35566289,157.34,157.33,21.31183246]
[1749730236338,15.78387996,157.45,157.33,21.31183246]
[1749730236339,15.88648194,157.37,157.33,21.31183246]
[1749730236539,6.35364381,157.39,157.32,23.77225306]
[1749730236738,22.23775334,157.39,157.32,23.77225306]
[1749730237152,22.23775334,157.39,157.34,21.31183246]
[1749730237351,22.23775334,157.39,157.36,21.31183246]
[1749730238974,22.23775334,157.39,157.37,21.31183246]
[1749730239343,22.23775334,157.39,157.32,23.77225306]
[1749730239751,22.23775334,157.39,157.37,21.31183246]
[1749730240172,22.23775334,157.39,157.36,21.31183246]
[1749730240356,22.23775334,157.39,157.37,21.31183246]
[1749730241269,6.35364381,157.39,157.38,14.20265976]
[1749730241472,33.05782159,157.42,157.39,1.6337]
[1749730241773,6.35236383,157.43,157.41,14.20265976]
[1749730241953,6.35081925,157.46,157.42,14.20265976]
[1749730242154,6.35081925,157.46,157.44,14.20265976]
[1749730242556,6.35081925,157.46,157.43,14.20265976]
[1749730242870,48.22645583,157.47,157.43,14.20265976]
[1749730243085,32.35041595,157.47,157.46,14.20265976]
[1749730243295,32.35041595,157.47,157.46,21.28744539]
[1749730244071,32.35041595,157.47,157.45,21.28744539]
[1749730244276,6.35041595,157.47,157.46,21.28744539]
[1749730244448,6.35041595,157.47,157.45,21.28744539]
[1749730244644,6.35041595,157.47,157.46,21.28744539]
[1749730245586,6.34920634,157.5,157.46,21.28744539]
[1749730245749,6.34920634,157.5,157.41,21.28744539]
[1749730245958,26.0,157.48,157.46,21.28744539]
[1749730247078,6.35041595,157.47,157.42,18.64964886]
[1749730247275,6.35041595,157.47,157.46,21.28744539]
[1749730247783,6.35041595,157.47,157.44,21.28744539]
[1749730248083,6.35041595,157.47,157.45,21.28744539]
[1749730248284,22.22645583,157.47,157.4,18.64964886]
[1749730248589,22.22645583,157.47,157.39,1.6337]
[1749730248765,22.22645583,157.47,157.44,21.28744539]
[1749730249178,15.87603988,157.47,157.44,21.28744539]
[1749730250188,15.87603988,157.47,157.45,21.28744539]
[1749730250384,15.87603988,157.47,157.44,21.28744539]
[1749730251281,15.87603988,157.47,157.4,18.64964886]
[1749730251483,15.87603988,157.47,157.43,21.28744539]
[1749730251795,15.87603988,157.47,157.39,1.6337]
[1749730252099,15.87603988,157.47,157.43,21.28744539]
[1749730252599,15.87603988,157.47,157.44,21.28744539]
[1749730253078,15.87603988,157.47,157.43,21.28744539]
[1749730253281,15.87603988,157.47,157.39,1.6337]
[1749730253485,37.16348527,157.47,157.42,21.28744539]
[1749730253681,37.16348527,157.47,157.43,21.28744539]
[1749730254599,37.16348527,157.47,157.42,21.28744539]